[Event "*** SCC Grand Prix: Titled Tuesday Blitz"]
[Site "Chess.com"]
[Date "2020.09.29"]
[Round "7"]
[White "MomchilPetkov"]
[Black "Rodalquilar"]
[Result "1-0"]
[WhiteElo "2609"]
[BlackElo "2772"]
[TimeControl "180+1"]
[EndTime "11:19:33 PDT"]
[Termination "MomchilPetkov won on time"]

1. e4 {[%clk 0:03:00.9]} 1... d5 {[%clk 0:03:00]} 2. exd5 {[%clk 0:02:57.9]}
2... Qxd5 {[%clk 0:03:00.9]} 3. Nc3 {[%clk 0:02:57.6]} 3... Qa5 {[%clk
0:03:01.1]} 4. d4 {[%clk 0:02:57.2]} 4... Nf6 {[%clk 0:03:01.6]} 5. Nf3 {[%clk
0:02:56.3]} 5... Bf5 {[%clk 0:03:01.6]} 6. Bc4 {[%clk 0:02:54.6]} 6... e6 {[%clk
0:03:01.7]} 7. Bd2 {[%clk 0:02:54.9]} 7... Bb4 {[%clk 0:03:01.8]} 8. a3 {[%clk
0:02:53.3]} 8... Bxc3 {[%clk 0:03:02]} 9. Bxc3 {[%clk 0:02:54.2]} 9... Qb6
{[%clk 0:03:02.7]} 10. O-O {[%clk 0:02:50.4]} 10... Nc6 {[%clk 0:03:01.8]} 11.
a4 {[%clk 0:02:30.7]} 11... a5 {[%clk 0:03:01.6]} 12. Bb5 {[%clk 0:02:30.1]}
12... O-O {[%clk 0:03:01.7]} 13. Qe2 {[%clk 0:02:26.9]} 13... Nb4 {[%clk
0:02:49.4]} 14. Rfc1 {[%clk 0:02:21.3]} 14... c6 {[%clk 0:02:37]} 15. Bc4 {[%clk
0:02:20.9]} 15... Rad8 {[%clk 0:02:34.8]} 16. Be1 {[%clk 0:02:18.5]} 16... Nbd5
{[%clk 0:02:11.5]} 17. Bb3 {[%clk 0:02:16.8]} 17... Bg4 {[%clk 0:01:33.5]} 18.
Rd1 {[%clk 0:02:05]} 18... Nf4 {[%clk 0:01:18.8]} 19. Qd2 {[%clk 0:01:50.2]}
19... Bxf3 {[%clk 0:01:17.9]} 20. gxf3 {[%clk 0:01:50]} 20... Qc7 {[%clk
0:01:18.2]} 21. Qxa5 {[%clk 0:01:48.3]} 21... b6 {[%clk 0:01:18.7]} 22. Qe5
{[%clk 0:01:46.5]} 22... Nh3+ {[%clk 0:00:56.1]} 23. Kg2 {[%clk 0:01:42.9]}
23... Nf4+ {[%clk 0:00:56.3]} 24. Kg1 {[%clk 0:01:40.9]} 24... Nh3+ {[%clk
0:00:55.8]} 25. Kg2 {[%clk 0:01:40.5]} 25... Nf4+ {[%clk 0:00:56.1]} 26. Kf1
{[%clk 0:01:38.8]} 26... Qxe5 {[%clk 0:00:44.1]} 27. dxe5 {[%clk 0:01:38.4]}
27... Nd7 {[%clk 0:00:45]} 28. a5 {[%clk 0:01:29.4]} 28... b5 {[%clk 0:00:43.2]}
29. a6 {[%clk 0:01:14.3]} 29... Nxe5 {[%clk 0:00:35.6]} 30. Rxd8 {[%clk
0:01:15.2]} 30... Rxd8 {[%clk 0:00:35.8]} 31. Ba5 {[%clk 0:01:15.1]} 31... Ra8
{[%clk 0:00:33.8]} 32. Bc7 {[%clk 0:01:14.1]} 32... f6 {[%clk 0:00:23.4]} 33. a7
{[%clk 0:01:05.4]} 33... Kf7 {[%clk 0:00:21.6]} 34. Bb8 {[%clk 0:00:55.9]} 34...
Ke7 {[%clk 0:00:18.3]} 35. Ra6 {[%clk 0:00:46.5]} 35... Kd7 {[%clk 0:00:11.2]}
36. Rb6 {[%clk 0:00:43.8]} 36... Kc8 {[%clk 0:00:08.1]} 37. c3 {[%clk
0:00:23.2]} 37... Nd5 {[%clk 0:00:08.3]} 38. Bxd5 {[%clk 0:00:19.5]} 38... exd5
{[%clk 0:00:08.7]} 39. f4 {[%clk 0:00:17.7]} 39... Nd7 {[%clk 0:00:09.1]} 40.
Rxc6+ {[%clk 0:00:17.7]} 40... Kd8 {[%clk 0:00:09.7]} 41. Rd6 {[%clk 0:00:16.2]}
41... Ke7 {[%clk 0:00:07.2]} 42. Rxd5 {[%clk 0:00:14.8]} 42... Nxb8 {[%clk
0:00:06.7]} 43. axb8=Q {[%clk 0:00:14.7]} 43... Rxb8 {[%clk 0:00:07.6]} 44. Ke2
{[%clk 0:00:14.7]} 44... Ke6 {[%clk 0:00:07.9]} 45. Rc5 {[%clk 0:00:13.7]} 45...
Kd6 {[%clk 0:00:07.5]} 46. b4 {[%clk 0:00:14.2]} 46... Re8+ {[%clk 0:00:06]} 47.
Kd3 {[%clk 0:00:14.6]} 47... Rb8 {[%clk 0:00:05.5]} 48. f5 {[%clk 0:00:15.1]}
48... Rb7 {[%clk 0:00:04.3]} 49. Kd4 {[%clk 0:00:15.3]} 49... Rb8 {[%clk
0:00:03.4]} 50. h4 {[%clk 0:00:13.7]} 50... Rb7 {[%clk 0:00:03.8]} 51. h5 {[%clk
0:00:14.2]} 51... Rb8 {[%clk 0:00:04.4]} 52. f3 {[%clk 0:00:14.7]} 52... Rb7
{[%clk 0:00:04.7]} 53. f4 {[%clk 0:00:15.2]} 53... Rb8 {[%clk 0:00:05.2]} 54.
Rd5+ {[%clk 0:00:15.8]} 54... Kc6 {[%clk 0:00:05.7]} 55. Rc5+ {[%clk 0:00:16.2]}
55... Kd6 {[%clk 0:00:06.2]} 56. Kd3 {[%clk 0:00:15.7]} 56... Rb7 {[%clk
0:00:06.2]} 57. Ke4 {[%clk 0:00:11.3]} 57... Re7+ {[%clk 0:00:06.1]} 58. Kf3
{[%clk 0:00:11.2]} 58... Rb7 {[%clk 0:00:07]} 59. Kg4 {[%clk 0:00:10.9]} 59...
h6 {[%clk 0:00:06.1]} 60. Kf3 {[%clk 0:00:11.1]} 60... Rb8 {[%clk 0:00:06.4]}
61. Ke4 {[%clk 0:00:11.4]} 61... Rb7 {[%clk 0:00:07]} 62. Kd4 {[%clk 0:00:11.9]}
62... Rb8 {[%clk 0:00:07.5]} 63. Ke3 {[%clk 0:00:10.5]} 63... Re8+ {[%clk
0:00:07.1]} 64. Kd3 {[%clk 0:00:10.7]} 64... Rb8 {[%clk 0:00:08]} 65. Kd4 {[%clk
0:00:10.7]} 65... Rb7 {[%clk 0:00:08.5]} 66. Rd5+ {[%clk 0:00:11.2]} 66... Kc6
{[%clk 0:00:08.6]} 67. Rd8 {[%clk 0:00:11.4]} 67... Ra7 {[%clk 0:00:04]} 68.
Rc8+ {[%clk 0:00:10.5]} 68... Kd6 {[%clk 0:00:04.1]} 69. Rd8+ {[%clk 0:00:10.8]}
69... Kc6 {[%clk 0:00:04.6]} 70. Rg8 {[%clk 0:00:11.2]} 70... Rd7+ {[%clk
0:00:04.5]} 71. Ke4 {[%clk 0:00:11.2]} 71... Re7+ {[%clk 0:00:04.8]} 72. Kd3
{[%clk 0:00:11.5]} 72... Rd7+ {[%clk 0:00:05.3]} 73. Kc2 {[%clk 0:00:11.7]}
73... Kd5 {[%clk 0:00:05.6]} 74. Rc8 {[%clk 0:00:11.6]} 74... Ke4 {[%clk
0:00:05.5]} 75. Rc5 {[%clk 0:00:12.1]} 75... Rb7 {[%clk 0:00:05.5]} 76. c4
{[%clk 0:00:06.9]} 76... bxc4 {[%clk 0:00:06]} 77. Kc3 {[%clk 0:00:07]} 77...
Kxf4 {[%clk 0:00:06.2]} 78. Kxc4 {[%clk 0:00:07.5]} 78... Kg5 {[%clk 0:00:07]}
79. b5 {[%clk 0:00:08.1]} 79... Kxh5 {[%clk 0:00:07.5]} 80. Kd5 {[%clk
0:00:08.7]} 80... Kg5 {[%clk 0:00:07.4]} 81. Kc6 {[%clk 0:00:09.1]} 81... Rb8
{[%clk 0:00:07.6]} 82. Kc7 {[%clk 0:00:08.5]} 82... Rf8 {[%clk 0:00:06.6]} 83.
Rd5 {[%clk 0:00:08.9]} 83... Rf7+ {[%clk 0:00:02.1]} 84. Rd7 {[%clk 0:00:08.3]}
84... Rf8 {[%clk 0:00:02.5]} 85. b6 {[%clk 0:00:08.4]} 85... Ra8 {[%clk
0:00:02.3]} 86. b7 {[%clk 0:00:04.3]} 86... Ra7 {[%clk 0:00:02.8]} 87. Rxg7+
{[%clk 0:00:03.4]} 87... Kxf5 {[%clk 0:00:02.6]} 88. Kd6 {[%clk 0:00:02.6]}
88... Ra6+ {[%clk 0:00:02.2]} 89. Kc5 {[%clk 0:00:02.5]} 89... Ra5+ {[%clk
0:00:02.7]} 90. Kc4 {[%clk 0:00:01.8]} 90... Ra4+ {[%clk 0:00:02.9]} 91. Kc3
{[%clk 0:00:02.7]} 91... Ra3+ {[%clk 0:00:03.3]} 92. Kc2 {[%clk 0:00:03.3]}
92... Ra7 {[%clk 0:00:03.5]} 93. b8=Q {[%clk 0:00:02.1]} 93... Rxg7 {[%clk
0:00:04.4]} 94. Qc8+ {[%clk 0:00:02.8]} 94... Kg6 {[%clk 0:00:04.7]} 95. Qf8
{[%clk 0:00:03.4]} 95... Rf7 {[%clk 0:00:04.6]} 96. Qe8 {[%clk 0:00:04.3]} 96...
f5 {[%clk 0:00:04.3]} 97. Kd3 {[%clk 0:00:05.2]} 97... f4 {[%clk 0:00:04.7]} 98.
Ke2 {[%clk 0:00:05.6]} 98... f3+ {[%clk 0:00:05.1]} 99. Kf2 {[%clk 0:00:06.1]}
99... Kg7 {[%clk 0:00:05.7]} 100. Qe4 {[%clk 0:00:06.5]} 100... Rf6 {[%clk
0:00:05.8]} 101. Qe5 {[%clk 0:00:06.4]} 101... Kf7 {[%clk 0:00:06.2]} 102. Qd5+
{[%clk 0:00:06.4]} 102... Kg7 {[%clk 0:00:06.6]} 103. Qd4 {[%clk 0:00:06.5]}
103... Kg6 {[%clk 0:00:07]} 104. Qe4+ {[%clk 0:00:06.4]} 104... Kg7 {[%clk
0:00:07.4]} 105. Qg4+ {[%clk 0:00:06.6]} 105... Kf7 {[%clk 0:00:07.9]} 106. Qh5+
{[%clk 0:00:06.9]} 106... Kg7 {[%clk 0:00:08.2]} 107. Qe5 {[%clk 0:00:07.1]}
107... Kf7 {[%clk 0:00:08.5]} 108. Qc7+ {[%clk 0:00:07.5]} 108... Kg6 {[%clk
0:00:08.9]} 109. Qd8 {[%clk 0:00:08]} 109... Kg7 {[%clk 0:00:09]} 110. Qe8
{[%clk 0:00:08]} 110... Rf7 {[%clk 0:00:07.5]} 111. Qe6 {[%clk 0:00:08.1]}
111... Rf6 {[%clk 0:00:07.6]} 112. Qh3 {[%clk 0:00:08.1]} 112... Kf7 {[%clk
0:00:07.2]} 113. Qh2 {[%clk 0:00:08.3]} 113... Kg6 {[%clk 0:00:07.3]} 114. Qg1+
{[%clk 0:00:08]} 114... Kf7 {[%clk 0:00:07.5]} 115. Ke3 {[%clk 0:00:07.8]}
115... f2 {[%clk 0:00:07.2]} 116. Qf1 {[%clk 0:00:07.9]} 116... h5 {[%clk
0:00:04.7]} 117. Ke4 {[%clk 0:00:08.1]} 117... h4 {[%clk 0:00:05.1]} 118. Ke5
{[%clk 0:00:08.4]} 118... h3 {[%clk 0:00:05.1]} 119. Qc4+ {[%clk 0:00:08.3]}
119... Kg7 {[%clk 0:00:04.4]} 120. Qg4+ {[%clk 0:00:07.4]} 120... Kf7 {[%clk
0:00:03.9]} 121. Qd7+ {[%clk 0:00:06.4]} 121... Kf8 {[%clk 0:00:03.8]} 122. Qd8+
{[%clk 0:00:04.2]} 122... Kg7 {[%clk 0:00:03.2]} 123. Qxf6+ {[%clk 0:00:04.5]}
1-0

[Event "*** SCC Grand Prix: Titled Tuesday Blitz"]
[Site "Chess.com"]
[Date "2020.09.29"]
[Round "8"]
[White "Jadeit90"]
[Black "Nastya_Rakhmangulova"]
[Result "1/2-1/2"]
[WhiteElo "2333"]
[BlackElo "2429"]
[TimeControl "180+1"]
[EndTime "11:28:38 PDT"]
[Termination "Game drawn by agreement"]

1. g3 {[%clk 0:02:55.2]} 1... d5 {[%clk 0:02:58.4]} 2. Bg2 {[%clk 0:02:55.6]}
2... c6 {[%clk 0:02:59]} 3. c4 {[%clk 0:02:56]} 3... Nf6 {[%clk 0:02:56.7]} 4.
cxd5 {[%clk 0:02:56.3]} 4... cxd5 {[%clk 0:02:56.7]} 5. Nf3 {[%clk 0:02:57.2]}
5... Nc6 {[%clk 0:02:56.4]} 6. O-O {[%clk 0:02:58.1]} 6... e5 {[%clk 0:02:50.9]}
7. d3 {[%clk 0:02:58.6]} 7... Be7 {[%clk 0:02:42.6]} 8. Nc3 {[%clk 0:02:59]}
8... O-O {[%clk 0:02:41.3]} 9. Bg5 {[%clk 0:02:59.1]} 9... Be6 {[%clk 0:02:25]}
10. Bxf6 {[%clk 0:02:59.2]} 10... Bxf6 {[%clk 0:02:24.8]} 11. e4 {[%clk
0:03:00.1]} 11... d4 {[%clk 0:02:13.8]} 12. Nd5 {[%clk 0:03:00.4]} 12... Bxd5
{[%clk 0:02:13.7]} 13. exd5 {[%clk 0:03:01.3]} 13... Qxd5 {[%clk 0:02:10.9]} 14.
Nd2 {[%clk 0:03:01.6]} 14... Qd7 {[%clk 0:02:04]} 15. Qa4 {[%clk 0:03:01.2]}
15... Rfc8 {[%clk 0:01:57.1]} 16. Rac1 {[%clk 0:03:00.1]} 16... a6 {[%clk
0:01:52.8]} 17. Ne4 {[%clk 0:02:56.3]} 17... Be7 {[%clk 0:01:52.2]} 18. Nc5
{[%clk 0:02:54.9]} 18... Bxc5 {[%clk 0:01:51.3]} 19. Rxc5 {[%clk 0:02:55.8]}
19... Nb8 {[%clk 0:01:32.7]} 20. Qxd7 {[%clk 0:02:47.9]} 20... Nxd7 {[%clk
0:01:32.4]} 21. Rxc8+ {[%clk 0:02:47.9]} 21... Rxc8 {[%clk 0:01:33.3]} 22. Bxb7
{[%clk 0:02:48]} 22... Rb8 {[%clk 0:01:33.5]} 23. Bxa6 {[%clk 0:02:48.1]} 23...
Rxb2 {[%clk 0:01:33.9]} 24. Bc4 {[%clk 0:02:48.2]} 24... Nb6 {[%clk 0:01:23.2]}
25. Bb3 {[%clk 0:02:46.8]} 1/2-1/2

[Event "*** SCC Grand Prix: Titled Tuesday Blitz"]
[Site "Chess.com"]
[Date "2020.09.29"]
[Round "8"]
[White "misterlamine"]
[Black "Orest_Vovk"]
[Result "0-1"]
[WhiteElo "2297"]
[BlackElo "2401"]
[TimeControl "180+1"]
[EndTime "11:29:14 PDT"]
[Termination "Orest_Vovk won by checkmate"]

1. d4 {[%clk 0:03:00.9]} 1... Nc6 {[%clk 0:03:00.3]} 2. c4 {[%clk 0:03:01.3]}
2... e5 {[%clk 0:03:00.5]} 3. d5 {[%clk 0:03:01.2]} 3... Nce7 {[%clk 0:03:00.8]}
4. e4 {[%clk 0:03:01.6]} 4... Ng6 {[%clk 0:03:01.2]} 5. Be3 {[%clk 0:03:01.2]}
5... Bb4+ {[%clk 0:02:59.7]} 6. Nd2 {[%clk 0:03:00.4]} 6... Nf6 {[%clk
0:02:59.5]} 7. Bd3 {[%clk 0:02:57.6]} 7... O-O {[%clk 0:02:57.5]} 8. a3 {[%clk
0:02:57]} 8... Bxd2+ {[%clk 0:02:55.6]} 9. Qxd2 {[%clk 0:02:57.9]} 9... d6
{[%clk 0:02:56.2]} 10. Ne2 {[%clk 0:02:57.8]} 10... Ng4 {[%clk 0:02:56.1]} 11.
Bg5 {[%clk 0:02:55.7]} 11... f6 {[%clk 0:02:54.8]} 12. Be3 {[%clk 0:02:52.1]}
12... Nxe3 {[%clk 0:02:54.6]} 13. Qxe3 {[%clk 0:02:51.6]} 13... f5 {[%clk
0:02:55]} 14. exf5 {[%clk 0:02:51.6]} 14... Bxf5 {[%clk 0:02:55]} 15. Bxf5
{[%clk 0:02:51]} 15... Rxf5 {[%clk 0:02:54.7]} 16. O-O {[%clk 0:02:51.9]} 16...
Qh4 {[%clk 0:02:51.5]} 17. Ng3 {[%clk 0:02:48.9]} 17... Rf4 {[%clk 0:02:48.9]}
18. c5 {[%clk 0:02:48.2]} 18... b6 {[%clk 0:02:43]} 19. cxd6 {[%clk 0:02:47.6]}
19... cxd6 {[%clk 0:02:43.9]} 20. Rac1 {[%clk 0:02:48.3]} 20... Raf8 {[%clk
0:02:41.9]} 21. Rc6 {[%clk 0:02:47.1]} 21... Ne7 {[%clk 0:02:39.2]} 22. Rxd6
{[%clk 0:02:45]} 22... e4 {[%clk 0:02:27.6]} 23. Rd7 {[%clk 0:02:37.6]} 23...
Ng6 {[%clk 0:02:21.2]} 24. Qc3 {[%clk 0:02:33.7]} 24... R4f6 {[%clk 0:02:11.4]}
25. Rxa7 {[%clk 0:02:19.3]} 25... Nf4 {[%clk 0:02:09.3]} 26. Re7 {[%clk
0:02:10.3]} 26... Qxg3 {[%clk 0:01:41.8]} 27. hxg3 {[%clk 0:02:04.2]} 27... Ne2+
{[%clk 0:01:40.8]} 28. Kh1 {[%clk 0:02:03.8]} 28... Rh6# {[%clk 0:01:40.8]} 0-1

[Event "*** SCC Grand Prix: Titled Tuesday Blitz"]
[Site "Chess.com"]
[Date "2020.09.29"]
[Round "8"]
[White "SergioGarciaFuentes"]
[Black "Kotofeyca"]
[Result "0-1"]
[WhiteElo "2188"]
[BlackElo "2348"]
[TimeControl "180+1"]
[EndTime "11:29:21 PDT"]
[Termination "Kotofeyca won by resignation"]

1. Nf3 {[%clk 0:03:00.9]} 1... d5 {[%clk 0:02:59.1]} 2. g3 {[%clk 0:03:00.8]}
2... c6 {[%clk 0:02:59.6]} 3. Bg2 {[%clk 0:03:01.1]} 3... Bg4 {[%clk 0:03:00.1]}
4. b3 {[%clk 0:03:00.7]} 4... Nd7 {[%clk 0:03:00.5]} 5. Bb2 {[%clk 0:03:00.8]}
5... f6 {[%clk 0:02:58.9]} 6. d4 {[%clk 0:02:58.2]} 6... e6 {[%clk 0:02:52.6]}
7. Nbd2 {[%clk 0:02:53.9]} 7... f5 {[%clk 0:02:52.3]} 8. c4 {[%clk 0:02:48]}
8... Ngf6 {[%clk 0:02:51.3]} 9. O-O {[%clk 0:02:45.9]} 9... Bd6 {[%clk
0:02:51.3]} 10. Ne5 {[%clk 0:02:35.7]} 10... Bh5 {[%clk 0:02:51.2]} 11. Re1
{[%clk 0:02:30.8]} 11... O-O {[%clk 0:02:49.9]} 12. Qc2 {[%clk 0:02:20.3]} 12...
Qe7 {[%clk 0:02:47.2]} 13. f3 {[%clk 0:02:13.4]} 13... a6 {[%clk 0:02:29.5]} 14.
e4 {[%clk 0:01:57.6]} 14... fxe4 {[%clk 0:02:28.9]} 15. fxe4 {[%clk 0:01:56.4]}
15... dxe4 {[%clk 0:02:28.3]} 16. Nxe4 {[%clk 0:01:50]} 16... Nxe4 {[%clk
0:02:11.4]} 17. Bxe4 {[%clk 0:01:45.7]} 17... Nxe5 {[%clk 0:02:11.3]} 18. Bxh7+
{[%clk 0:01:24.9]} 18... Kh8 {[%clk 0:02:10.5]} 19. Rxe5 {[%clk 0:01:15.8]}
19... Bxe5 {[%clk 0:01:59.5]} 20. dxe5 {[%clk 0:01:16.3]} 20... Qc5+ {[%clk
0:01:58.9]} 21. Kh1 {[%clk 0:01:15.3]} 0-1

[Event "*** SCC Grand Prix: Titled Tuesday Blitz"]
[Site "Chess.com"]
[Date "2020.09.29"]
[Round "8"]
[White "DrMamaliga"]
[Black "FontVella8"]
[Result "0-1"]
[WhiteElo "2310"]
[BlackElo "2488"]
[TimeControl "180+1"]
[EndTime "11:29:52 PDT"]
[Termination "FontVella8 won by resignation"]

1. d4 {[%clk 0:03:00.9]} 1... d5 {[%clk 0:02:11.8]} 2. c4 {[%clk 0:02:59.4]}
2... dxc4 {[%clk 0:02:10.9]} 3. e3 {[%clk 0:02:58.1]} 3... Nf6 {[%clk 0:02:11]}
4. Bxc4 {[%clk 0:02:57.2]} 4... e6 {[%clk 0:02:11.9]} 5. Nf3 {[%clk 0:02:55.8]}
5... c5 {[%clk 0:02:12]} 6. O-O {[%clk 0:02:54.5]} 6... Nc6 {[%clk 0:02:11.4]}
7. Nc3 {[%clk 0:02:52.4]} 7... a6 {[%clk 0:02:11.7]} 8. a4 {[%clk 0:02:47.9]}
8... cxd4 {[%clk 0:02:11.6]} 9. exd4 {[%clk 0:02:46.9]} 9... Be7 {[%clk
0:02:12.1]} 10. Bg5 {[%clk 0:02:43.7]} 10... O-O {[%clk 0:02:12]} 11. Re1 {[%clk
0:02:38.6]} 11... Nb4 {[%clk 0:02:11.7]} 12. Ne5 {[%clk 0:02:34.2]} 12... Nfd5
{[%clk 0:02:06]} 13. Bxe7 {[%clk 0:02:27.6]} 13... Nxe7 {[%clk 0:02:05.8]} 14.
Qb3 {[%clk 0:02:17.7]} 14... Nbc6 {[%clk 0:02:03.7]} 15. Nxc6 {[%clk 0:02:10.9]}
15... Nxc6 {[%clk 0:02:04.6]} 16. d5 {[%clk 0:02:10.5]} 16... Na5 {[%clk
0:02:04.9]} 17. Qb4 {[%clk 0:02:07.1]} 17... Nxc4 {[%clk 0:02:05.2]} 18. Qxc4
{[%clk 0:02:08]} 18... exd5 {[%clk 0:02:05.5]} 19. Qxd5 {[%clk 0:02:06.7]} 19...
Be6 {[%clk 0:02:04.2]} 20. Qxb7 {[%clk 0:02:04]} 20... Rb8 {[%clk 0:02:04.3]}
21. Qxa6 {[%clk 0:02:02.5]} 21... Rxb2 {[%clk 0:02:03.6]} 22. Rad1 {[%clk
0:02:02.2]} 22... Qh4 {[%clk 0:02:01]} 23. Re2 {[%clk 0:01:56.3]} 23... Bc4
{[%clk 0:01:53.1]} 0-1

[Event "*** SCC Grand Prix: Titled Tuesday Blitz"]
[Site "Chess.com"]
[Date "2020.09.29"]
[Round "8"]
[White "Kaslask"]
[Black "rugbyclub"]
[Result "1-0"]
[WhiteElo "2343"]
[BlackElo "2161"]
[TimeControl "180+1"]
[EndTime "11:29:53 PDT"]
[Termination "Kaslask won by resignation"]

1. c4 {[%clk 0:03:00.9]} 1... e5 {[%clk 0:02:58.3]} 2. Nc3 {[%clk 0:03:00]} 2...
Nf6 {[%clk 0:02:57.5]} 3. e3 {[%clk 0:02:59.6]} 3... Nc6 {[%clk 0:02:55.6]} 4.
Qc2 {[%clk 0:02:54.4]} 4... Bb4 {[%clk 0:02:51.6]} 5. Nd5 {[%clk 0:02:45.2]}
5... O-O {[%clk 0:02:42.5]} 6. Nxb4 {[%clk 0:02:23.5]} 6... Nxb4 {[%clk
0:02:41.3]} 7. Qc3 {[%clk 0:02:20.9]} 7... Qe7 {[%clk 0:02:39.2]} 8. a3 {[%clk
0:02:20.1]} 8... Nc6 {[%clk 0:02:38.1]} 9. d3 {[%clk 0:02:17.5]} 9... d5 {[%clk
0:02:37.8]} 10. cxd5 {[%clk 0:02:17]} 10... Nxd5 {[%clk 0:02:38.2]} 11. Qc2
{[%clk 0:02:17]} 11... a5 {[%clk 0:02:26.5]} 12. Be2 {[%clk 0:02:16.5]} 12...
Be6 {[%clk 0:02:20.4]} 13. Nf3 {[%clk 0:02:14.4]} 13... a4 {[%clk 0:02:19.7]}
14. Bd2 {[%clk 0:02:12.7]} 14... Rfd8 {[%clk 0:02:10.1]} 15. O-O {[%clk
0:02:07.1]} 15... f6 {[%clk 0:02:08.8]} 16. Rfd1 {[%clk 0:02:03.8]} 16... Rd7
{[%clk 0:02:07.6]} 17. Bc3 {[%clk 0:01:52]} 17... Nb6 {[%clk 0:01:58.9]} 18. Nd2
{[%clk 0:01:45.8]} 18... Rad8 {[%clk 0:01:52.3]} 19. Rdc1 {[%clk 0:01:45]} 19...
Bf5 {[%clk 0:01:51.8]} 20. Ne4 {[%clk 0:01:42.3]} 20... Be6 {[%clk 0:01:46.1]}
21. Be1 {[%clk 0:01:36.3]} 21... Bb3 {[%clk 0:01:45.1]} 22. Qc5 {[%clk
0:01:34.9]} 22... Qf7 {[%clk 0:01:41.8]} 23. Qc3 {[%clk 0:01:31.1]} 23... Nd5
{[%clk 0:01:30.3]} 24. Qd2 {[%clk 0:01:27.8]} 24... Na5 {[%clk 0:01:24.9]} 25.
Qxa5 {[%clk 0:01:24.9]} 1-0

[Event "*** SCC Grand Prix: Titled Tuesday Blitz"]
[Site "Chess.com"]
[Date "2020.09.29"]
[Round "8"]
[White "r31415"]
[Black "anon219"]
[Result "0-1"]
[WhiteElo "2468"]
[BlackElo "2740"]
[TimeControl "180+1"]
[EndTime "11:29:57 PDT"]
[Termination "anon219 won by resignation"]

1. e4 {[%clk 0:02:59.9]} 1... c5 {[%clk 0:02:59.9]} 2. Nf3 {[%clk 0:02:58.2]}
2... a6 {[%clk 0:03:00]} 3. c4 {[%clk 0:02:57.7]} 3... e6 {[%clk 0:02:58.3]} 4.
Nc3 {[%clk 0:02:55.9]} 4... Qc7 {[%clk 0:02:54.5]} 5. d4 {[%clk 0:02:54.4]} 5...
cxd4 {[%clk 0:02:54.6]} 6. Nxd4 {[%clk 0:02:55.3]} 6... Nf6 {[%clk 0:02:54.9]}
7. a3 {[%clk 0:02:54.8]} 7... b6 {[%clk 0:02:55.2]} 8. f4 {[%clk 0:02:54.3]}
8... Bb7 {[%clk 0:02:05.7]} 9. Bd3 {[%clk 0:02:54.3]} 9... Bc5 {[%clk
0:01:55.6]} 10. Nc2 {[%clk 0:02:51]} 10... d5 {[%clk 0:01:50.4]} 11. e5 {[%clk
0:02:39]} 11... dxc4 {[%clk 0:01:44]} 12. exf6 {[%clk 0:02:33.6]} 12... cxd3
{[%clk 0:01:44]} 13. fxg7 {[%clk 0:02:34.5]} 13... Rg8 {[%clk 0:01:43.2]} 14.
Qxd3 {[%clk 0:02:34.9]} 14... Rxg7 {[%clk 0:01:42.2]} 15. Ne4 {[%clk 0:02:16.7]}
15... Rxg2 {[%clk 0:01:36.7]} 16. Nf6+ {[%clk 0:01:14.7]} 16... Ke7 {[%clk
0:01:33.4]} 17. Nxh7 {[%clk 0:01:14.7]} 17... Rxc2 {[%clk 0:01:25.7]} 0-1

[Event "*** SCC Grand Prix: Titled Tuesday Blitz"]
[Site "Chess.com"]
[Date "2020.09.29"]
[Round "8"]
[White "floplover"]
[Black "AsaHoffmann"]
[Result "0-1"]
[WhiteElo "2304"]
[BlackElo "2408"]
[TimeControl "180+1"]
[EndTime "11:30:08 PDT"]
[Termination "AsaHoffmann won by resignation"]

1. d4 {[%clk 0:03:00.9]} 1... Nf6 {[%clk 0:02:58.9]} 2. c4 {[%clk 0:03:00.5]}
2... c5 {[%clk 0:02:56.3]} 3. d5 {[%clk 0:03:00.1]} 3... e5 {[%clk 0:02:54.6]}
4. Nc3 {[%clk 0:02:59.1]} 4... d6 {[%clk 0:02:54.4]} 5. e4 {[%clk 0:02:58.4]}
5... Be7 {[%clk 0:02:53.8]} 6. Be2 {[%clk 0:02:57.8]} 6... Nbd7 {[%clk
0:02:52.5]} 7. Nf3 {[%clk 0:02:55.2]} 7... Nf8 {[%clk 0:02:51.6]} 8. O-O {[%clk
0:02:47.4]} 8... Ng6 {[%clk 0:02:51]} 9. Ne1 {[%clk 0:02:46.8]} 9... O-O {[%clk
0:02:50]} 10. Nd3 {[%clk 0:02:46.4]} 10... a6 {[%clk 0:02:49.8]} 11. a3 {[%clk
0:02:45.2]} 11... b5 {[%clk 0:02:49.1]} 12. cxb5 {[%clk 0:02:31.3]} 12... axb5
{[%clk 0:02:48.1]} 13. f3 {[%clk 0:02:24.3]} 13... b4 {[%clk 0:02:43.5]} 14. Nb1
{[%clk 0:02:22.7]} 14... Nd7 {[%clk 0:02:36.6]} 15. Be3 {[%clk 0:02:10.3]} 15...
Bg5 {[%clk 0:02:35.6]} 16. Bf2 {[%clk 0:02:08.5]} 16... Nb6 {[%clk 0:02:30.3]}
17. Nd2 {[%clk 0:02:04.8]} 17... bxa3 {[%clk 0:02:27.7]} 18. Rxa3 {[%clk
0:02:00.7]} 18... Ba6 {[%clk 0:02:26.4]} 19. Qc2 {[%clk 0:01:29.6]} 19... Bxd2
{[%clk 0:02:20.7]} 20. Qxd2 {[%clk 0:01:30.5]} 20... Nc4 {[%clk 0:02:20.4]} 21.
Qc3 {[%clk 0:01:29.1]} 21... Nxa3 {[%clk 0:02:19.9]} 22. bxa3 {[%clk 0:01:30]}
22... Bxd3 {[%clk 0:02:12.9]} 23. Bxd3 {[%clk 0:01:30.9]} 23... Qa5 {[%clk
0:02:12]} 24. Qxa5 {[%clk 0:01:19.3]} 24... Rxa5 {[%clk 0:02:11.1]} 25. h4
{[%clk 0:01:13.1]} 25... Rxa3 {[%clk 0:02:09.2]} 26. Bb5 {[%clk 0:01:12.3]}
26... Rb8 {[%clk 0:02:01.2]} 27. Bc6 {[%clk 0:01:12.2]} 27... Rb2 {[%clk
0:01:58.9]} 28. h5 {[%clk 0:00:54.4]} 28... Nf4 {[%clk 0:01:58]} 0-1